[Event "Champions Chess Tour Finals 2024"]
[Date "2024.12.18"]
[White "Carlsen, Magnus"]
[Black "Vachier-Lagrave, Maxime"]
[WhiteElo "2838"]
[BlackElo "2763"]
[Round "4.1"]
[Result "1-0"]
[TimeControl "600+2"]

1. Nf3 {[%clk 0:10:00]} d5 {[%clk 0:10:01]} 2. e3 {[%clk 0:09:53]} Nf6 {[%clk
0:09:52]} 3. b3 {[%clk 0:09:50]} g6 {[%clk 0:09:50]} 4. Bb2 {[%clk 0:09:45]} Bg7
{[%clk 0:09:50]} 5. c4 {[%clk 0:09:43]} c6 {[%clk 0:09:14]} 6. Be2 {[%clk
0:09:38]} O-O {[%clk 0:09:13]} 7. O-O {[%clk 0:09:37]} Bg4 {[%clk 0:09:12]} 8.
h3 {[%clk 0:09:08]} Bxf3 {[%clk 0:09:12]} 9. Bxf3 {[%clk 0:09:08]} Re8 {[%clk
0:08:53]} 10. d4 {[%clk 0:08:49]} e6 {[%clk 0:08:46]} 11. Nc3 {[%clk 0:08:24]}
a5 {[%clk 0:08:46]} 12. Qc2 {[%clk 0:08:18]} Na6 {[%clk 0:08:45]} 13. Rfd1
{[%clk 0:08:16]} Qe7 {[%clk 0:08:17]} 14. a3 {[%clk 0:08:13]} Rab8 {[%clk
0:07:57]} 15. Rac1 {[%clk 0:07:38]} b5 {[%clk 0:06:57]} 16. Ne2 {[%clk 0:06:39]}
Nd7 {[%clk 0:06:47]} 17. cxd5 {[%clk 0:06:15]} cxd5 {[%clk 0:06:47]} 18. Nf4
{[%clk 0:06:15]} b4 {[%clk 0:05:21]} 19. a4 {[%clk 0:05:47]} Nb6 {[%clk
0:05:22]} 20. Qe2 {[%clk 0:05:27]} Qa7 {[%clk 0:04:38]} 21. Nd3 {[%clk 0:04:43]}
Nd7 {[%clk 0:04:37]} 22. Rc6 {[%clk 0:04:19]} Rec8 {[%clk 0:03:50]} 23. Rdc1
{[%clk 0:04:20]} Rxc6 {[%clk 0:03:13]} 24. Rxc6 {[%clk 0:04:20]} Qb7 {[%clk
0:03:14]} 25. Qc2 {[%clk 0:04:19]} Rd8 {[%clk 0:03:09]} 26. Qc1 {[%clk 0:04:13]}
Ndb8 {[%clk 0:02:54]} 27. Rc2 {[%clk 0:04:12]} Nd7 {[%clk 0:02:55]} 28. Be2
{[%clk 0:04:07]} Bf8 {[%clk 0:02:44]} 29. Ne5 {[%clk 0:02:53]} Ndb8 {[%clk
0:02:45]} 30. h4 {[%clk 0:02:36]} Bd6 {[%clk 0:02:17]} 31. h5 {[%clk 0:02:36]}
Nc7 {[%clk 0:02:17]} 32. e4 {[%clk 0:02:21]} Bxe5 {[%clk 0:01:38]} 33. dxe5
{[%clk 0:02:22]} Ne8 {[%clk 0:01:38]} 34. Qg5 {[%clk 0:01:41]} Rc8 {[%clk
0:01:27]} 35. Rxc8 {[%clk 0:01:42]} Qxc8 {[%clk 0:01:28]} 36. exd5 {[%clk
0:01:42]} exd5 {[%clk 0:01:08]} 37. Bb5 {[%clk 0:00:32]} Nc6 {[%clk 0:00:50]}
38. h6 {[%clk 0:00:32]} Qe6 {[%clk 0:00:44]} 39. Qc1 {[%clk 0:00:26]} Na7 {[%clk
0:00:37]} 40. Qc5 {[%clk 0:00:09]} Nc8 {[%clk 0:00:22]} 41. g3 {[%clk 0:00:07]}
g5 {[%clk 0:00:21]} 42. Qe3 {[%clk 0:00:07]} f6 {[%clk 0:00:20]} 43. Qd4 {[%clk
0:00:05]} Nc7 {[%clk 0:00:11]} 44. exf6 {[%clk 0:00:06]} Nxb5 {[%clk 0:00:09]}
45. f7+ {[%clk 0:00:07]} Kxf7 {[%clk 0:00:10]} 46. Qg7+ {[%clk 0:00:08]} Ke8
{[%clk 0:00:12]} 47. Qh8+ {[%clk 0:00:09]} Kd7 {[%clk 0:00:13]} 48. Qxh7+ {[%clk
0:00:10]} Ne7 {[%clk 0:00:07]} 49. axb5 {[%clk 0:00:11]} Qe2 {[%clk 0:00:06]}
50. Bf6 {[%clk 0:00:11]} a4 {[%clk 0:00:07]} 51. Qxe7+ {[%clk 0:00:11]} 1-0

[Variant "Standard"]
[Site "Europe Echecs"]

[Event "Champions Chess Tour Finals 2024"]
[Date "2024.12.18"]
[White "Lazavik, Denis"]
[Black "Aronian, Levon"]
[WhiteElo "2553"]
[BlackElo "2818"]
[Round "4.1"]
[Result "1-0"]
[TimeControl "600+2"]

1. d4 {[%clk 0:10:01]} Nf6 {[%clk 0:10:03]} 2. c4 {[%clk 0:10:01]} e6 {[%clk
0:10:03]} 3. Nc3 {[%clk 0:10:01]} Bb4 {[%clk 0:10:03]} 4. e3 {[%clk 0:10:02]}
O-O {[%clk 0:09:58]} 5. Bd3 {[%clk 0:10:01]} d5 {[%clk 0:09:58]} 6. cxd5 {[%clk
0:09:57]} exd5 {[%clk 0:09:58]} 7. Nge2 {[%clk 0:09:56]} Re8 {[%clk 0:09:46]} 8.
O-O {[%clk 0:09:55]} Bf8 {[%clk 0:09:31]} 9. Bd2 {[%clk 0:09:40]} b6 {[%clk
0:09:28]} 10. Nf4 {[%clk 0:09:30]} Bb7 {[%clk 0:09:16]} 11. Qf3 {[%clk 0:09:25]}
c5 {[%clk 0:08:19]} 12. Rfd1 {[%clk 0:08:41]} cxd4 {[%clk 0:05:43]} 13. exd4
{[%clk 0:08:40]} Ne4 {[%clk 0:05:35]} 14. Rac1 {[%clk 0:06:13]} g6 {[%clk
0:04:07]} 15. Nfxd5 {[%clk 0:04:14]} Bxd5 {[%clk 0:01:09]} 16. Nxd5 {[%clk
0:02:24]} Qxd5 {[%clk 0:00:38]} 17. Re1 {[%clk 0:02:25]} Qxd4 {[%clk 0:00:39]}
18. Rxe4 {[%clk 0:01:56]} Rxe4 {[%clk 0:00:40]} 19. Qxe4 {[%clk 0:01:56]} Qxb2
{[%clk 0:00:25]} 20. Rd1 {[%clk 0:01:51]} Nc6 {[%clk 0:00:24]} 21. Qxc6 {[%clk
0:01:50]} Rd8 {[%clk 0:00:26]} 22. Qc2 {[%clk 0:01:42]} Qa3 {[%clk 0:00:21]} 23.
Be3 {[%clk 0:01:37]} b5 {[%clk 0:00:08]} 24. Bxb5 {[%clk 0:01:17]} Rxd1+ {[%clk
0:00:08]} 25. Qxd1 {[%clk 0:01:18]} Qxa2 {[%clk 0:00:05]} 26. g3 {[%clk
0:01:14]} a5 {[%clk 0:00:04]} 27. Qd8 {[%clk 0:01:11]} Qb1+ {[%clk 0:00:03]} 28.
Bf1 {[%clk 0:01:12]} Qb4 {[%clk 0:00:03]} 29. Bh6 {[%clk 0:01:06]} a4 {[%clk
0:00:04]} 30. Qxf8+ {[%clk 0:00:58]} Qxf8 {[%clk 0:00:05]} 31. Bxf8 {[%clk
0:00:58]} Kxf8 {[%clk 0:00:06]} 32. Bc4 {[%clk 0:00:59]} f6 {[%clk 0:00:07]} 33.
Kf1 {[%clk 0:01:00]} Ke7 {[%clk 0:00:08]} 34. Ke2 {[%clk 0:01:01]} Kd6 {[%clk
0:00:10]} 35. Kd3 {[%clk 0:01:01]} Ke5 {[%clk 0:00:08]} 36. f3 {[%clk 0:00:47]}
g5 {[%clk 0:00:07]} 37. Ke3 {[%clk 0:00:45]} a3 {[%clk 0:00:07]} 38. Ba2 {[%clk
0:00:46]} h5 {[%clk 0:00:04]} 39. Bb3 {[%clk 0:00:28]} Kf5 {[%clk 0:00:03]} 40.
Kd4 {[%clk 0:00:25]} h4 {[%clk 0:00:05]} 41. Kd5 {[%clk 0:00:26]} Kg6 {[%clk
0:00:03]} 42. Ke6 {[%clk 0:00:27]} f5 {[%clk 0:00:04]} 43. Ke5 {[%clk 0:00:23]}
1-0

[Variant "Standard"]
[Site "Europe Echecs"]

[Event "Champions Chess Tour Finals 2024"]
[Date "2024.12.18"]
[White "Keymer, Vincent"]
[Black "So, Wesley"]
[WhiteElo "2649"]
[BlackElo "2826"]
[Round "4.2"]
[Result "1-0"]
[TimeControl "600+2"]

1. c4 {[%clk 0:10:02]} e5 {[%clk 0:09:48]} 2. d3 {[%clk 0:10:02]} Nf6 {[%clk
0:09:41]} 3. Nf3 {[%clk 0:10:03]} Nc6 {[%clk 0:09:42]} 4. a3 {[%clk 0:10:01]} a5
{[%clk 0:09:28]} 5. Nc3 {[%clk 0:09:59]} d5 {[%clk 0:09:19]} 6. cxd5 {[%clk
0:10:00]} Nxd5 {[%clk 0:09:20]} 7. e4 {[%clk 0:10:01]} Nxc3 {[%clk 0:08:25]} 8.
bxc3 {[%clk 0:10:01]} Bc5 {[%clk 0:08:26]} 9. Be2 {[%clk 0:09:17]} O-O {[%clk
0:08:25]} 10. O-O {[%clk 0:09:17]} Bg4 {[%clk 0:06:27]} 11. h3 {[%clk 0:09:17]}
Bh5 {[%clk 0:06:27]} 12. g4 {[%clk 0:08:17]} Bg6 {[%clk 0:06:27]} 13. a4 {[%clk
0:07:19]} b6 {[%clk 0:06:07]} 14. Qb3 {[%clk 0:06:12]} Kh8 {[%clk 0:05:45]} 15.
Bb2 {[%clk 0:05:31]} f6 {[%clk 0:05:39]} 16. Rad1 {[%clk 0:05:27]} Bd6 {[%clk
0:05:18]} 17. Qc2 {[%clk 0:05:15]} Qe8 {[%clk 0:05:15]} 18. Nh4 {[%clk 0:05:13]}
Nd8 {[%clk 0:05:07]} 19. Bc1 {[%clk 0:04:52]} Ne6 {[%clk 0:05:02]} 20. Nf5
{[%clk 0:04:36]} Rd8 {[%clk 0:04:55]} 21. Be3 {[%clk 0:04:07]} Nc5 {[%clk
0:04:21]} 22. Ra1 {[%clk 0:04:02]} Ne6 {[%clk 0:04:17]} 23. d4 {[%clk 0:02:30]}
exd4 {[%clk 0:04:01]} 24. cxd4 {[%clk 0:02:31]} Nf4 {[%clk 0:03:45]} 25. Bb5
{[%clk 0:02:21]} Qe6 {[%clk 0:03:31]} 26. Nxd6 {[%clk 0:00:39]} Qxd6 {[%clk
0:03:31]} 27. f3 {[%clk 0:00:40]} Nd5 {[%clk 0:01:46]} 28. Bf2 {[%clk 0:00:35]}
Nf4 {[%clk 0:01:48]} 29. Kh1 {[%clk 0:00:30]} Nxh3 {[%clk 0:01:48]} 30. Be3
{[%clk 0:00:31]} Ng5 {[%clk 0:01:42]} 31. Rac1 {[%clk 0:00:16]} Rc8 {[%clk
0:00:58]} 32. Qh2 {[%clk 0:00:09]} Qe7 {[%clk 0:00:38]} 33. Kg1 {[%clk 0:00:08]}
Be8 {[%clk 0:00:28]} 34. Ba6 {[%clk 0:00:09]} Ra8 {[%clk 0:00:29]} 35. Rxc7
{[%clk 0:00:07]} Qa3 {[%clk 0:00:19]} 36. Bxg5 {[%clk 0:00:07]} fxg5 {[%clk
0:00:20]} 37. Qe5 {[%clk 0:00:08]} Bf7 {[%clk 0:00:11]} 38. Bc4 {[%clk 0:00:07]}
Qe3+ {[%clk 0:00:10]} 39. Kg2 {[%clk 0:00:07]} Rae8 {[%clk 0:00:11]} 40. Rxf7
{[%clk 0:00:06]} Rg8 {[%clk 0:00:13]} 41. Qd6 {[%clk 0:00:05]} Rc8 {[%clk
0:00:05]} 42. Qd5 {[%clk 0:00:05]} Rgd8 {[%clk 0:00:04]} 43. Rd7 {[%clk
0:00:07]} Rg8 {[%clk 0:00:04]} 44. Rf2 {[%clk 0:00:08]} h6 {[%clk 0:00:04]} 45.
Qe6 {[%clk 0:00:08]} Qc3 {[%clk 0:00:04]} 46. Bd5 {[%clk 0:00:08]} Qa1 {[%clk
0:00:05]} 47. Qf7 {[%clk 0:00:07]} Rcf8 {[%clk 0:00:04]} 48. Qg6 {[%clk
0:00:08]} Rf6 {[%clk 0:00:05]} 49. Qh5 {[%clk 0:00:07]} Rgf8 {[%clk 0:00:07]}
50. Qh3 {[%clk 0:00:07]} Qxd4 {[%clk 0:00:07]} 51. Qg3 {[%clk 0:00:08]} Qxa4
{[%clk 0:00:08]} 52. Ra7 {[%clk 0:00:08]} Qd4 {[%clk 0:00:09]} 53. Rd7 {[%clk
0:00:07]} a4 {[%clk 0:00:10]} 54. e5 {[%clk 0:00:08]} Rf4 {[%clk 0:00:09]} 55.
e6 {[%clk 0:00:09]} Re8 {[%clk 0:00:06]} 56. Re2 {[%clk 0:00:07]} a3 {[%clk
0:00:07]} 57. e7 {[%clk 0:00:08]} Rf6 {[%clk 0:00:05]} 58. Rd8 {[%clk 0:00:08]}
Qa4 {[%clk 0:00:06]} 59. Qb8 {[%clk 0:00:08]} 1-0

[Variant "Standard"]
[Site "Europe Echecs"]

[Event "Champions Chess Tour Finals 2024"]
[Date "2024.12.18"]
[White "Vachier-Lagrave, Maxime"]
[Black "Carlsen, Magnus"]
[WhiteElo "2763"]
[BlackElo "2838"]
[Round "4.2"]
[Result "1-0"]
[TimeControl "600+2"]

1. e4 {[%clk 0:10:02]} e5 {[%clk 0:10:02]} 2. Nf3 {[%clk 0:10:03]} Nc6 {[%clk
0:10:02]} 3. Bb5 {[%clk 0:10:03]} a6 {[%clk 0:10:02]} 4. Ba4 {[%clk 0:10:04]}
Nf6 {[%clk 0:10:02]} 5. O-O {[%clk 0:10:04]} Be7 {[%clk 0:10:02]} 6. d3 {[%clk
0:10:04]} b5 {[%clk 0:10:00]} 7. Bb3 {[%clk 0:10:04]} O-O {[%clk 0:09:56]} 8.
Nc3 {[%clk 0:10:05]} d6 {[%clk 0:09:52]} 9. a3 {[%clk 0:10:04]} Rb8 {[%clk
0:09:26]} 10. h3 {[%clk 0:09:17]} h6 {[%clk 0:08:55]} 11. Be3 {[%clk 0:09:12]}
Re8 {[%clk 0:08:54]} 12. Ne2 {[%clk 0:08:44]} Bf8 {[%clk 0:08:49]} 13. c3 {[%clk
0:08:37]} d5 {[%clk 0:08:23]} 14. Bc2 {[%clk 0:08:37]} dxe4 {[%clk 0:08:00]} 15.
dxe4 {[%clk 0:08:38]} Qxd1 {[%clk 0:08:00]} 16. Rfxd1 {[%clk 0:08:38]} Na5
{[%clk 0:07:40]} 17. b3 {[%clk 0:08:29]} Be6 {[%clk 0:07:35]} 18. Nc1 {[%clk
0:07:50]} Nd7 {[%clk 0:07:15]} 19. Nd2 {[%clk 0:06:53]} c5 {[%clk 0:06:47]} 20.
b4 {[%clk 0:05:48]} Nb7 {[%clk 0:06:46]} 21. Nf3 {[%clk 0:05:41]} Rec8 {[%clk
0:06:33]} 22. Bb3 {[%clk 0:04:48]} c4 {[%clk 0:06:16]} 23. Bc2 {[%clk 0:04:49]}
a5 {[%clk 0:06:17]} 24. Ne2 {[%clk 0:04:49]} Ra8 {[%clk 0:06:09]} 25. Nh4 {[%clk
0:04:16]} Ra6 {[%clk 0:04:45]} 26. f4 {[%clk 0:04:16]} exf4 {[%clk 0:04:46]} 27.
Nxf4 {[%clk 0:04:16]} Ne5 {[%clk 0:03:51]} 28. Nf3 {[%clk 0:04:16]} Nxf3+ {[%clk
0:03:41]} 29. gxf3 {[%clk 0:04:17]} Rca8 {[%clk 0:03:42]} 30. Rac1 {[%clk
0:03:52]} axb4 {[%clk 0:03:42]} 31. axb4 {[%clk 0:03:53]} Ra3 {[%clk 0:03:33]}
32. Bd4 {[%clk 0:03:53]} Nd8 {[%clk 0:03:33]} 33. e5 {[%clk 0:03:32]} g5 {[%clk
0:03:08]} 34. Nh5 {[%clk 0:03:23]} Nc6 {[%clk 0:02:44]} 35. Be4 {[%clk 0:03:20]}
Nxd4 {[%clk 0:02:44]} 36. cxd4 {[%clk 0:03:16]} Rd8 {[%clk 0:02:39]} 37. d5
{[%clk 0:03:12]} Bxh3 {[%clk 0:02:39]} 38. d6 {[%clk 0:02:56]} Bg7 {[%clk
0:02:23]} 39. Rd5 {[%clk 0:02:40]} Bd7 {[%clk 0:02:19]} 40. Rc5 {[%clk 0:02:34]}
Bh8 {[%clk 0:02:03]} 41. Kf2 {[%clk 0:02:23]} Kf8 {[%clk 0:02:00]} 42. Re1
{[%clk 0:02:11]} Ra2+ {[%clk 0:01:10]} 43. Kg3 {[%clk 0:02:12]} Re8 {[%clk
0:01:11]} 44. Nf6 {[%clk 0:02:12]} Bxf6 {[%clk 0:01:12]} 45. exf6 {[%clk
0:02:13]} Re6 {[%clk 0:00:51]} 46. Rc7 {[%clk 0:02:14]} Rxd6 {[%clk 0:00:44]}
47. Rh1 {[%clk 0:02:15]} Rxf6 {[%clk 0:00:13]} 48. Rxd7 {[%clk 0:02:16]} Rb2
{[%clk 0:00:14]} 49. Rb1 {[%clk 0:02:08]} Rxb1 {[%clk 0:00:08]} 50. Bxb1 {[%clk
0:02:09]} Ra6 {[%clk 0:00:08]} 51. Rb7 {[%clk 0:02:10]} c3 {[%clk 0:00:04]} 52.
Rxb5 {[%clk 0:02:10]} Ra1 {[%clk 0:00:05]} 53. Be4 {[%clk 0:02:08]} Ra4 {[%clk
0:00:05]} 54. Kg4 {[%clk 0:02:00]} Kg7 {[%clk 0:00:06]} 55. Rb6 {[%clk 0:01:56]}
Ra2 {[%clk 0:00:06]} 56. Rc6 {[%clk 0:01:57]} Rb2 {[%clk 0:00:07]} 57. Rc4
{[%clk 0:01:55]} Kf6 {[%clk 0:00:08]} 58. f4 {[%clk 0:01:30]} gxf4 {[%clk
0:00:07]} 59. Kxf4 {[%clk 0:01:30]} h5 {[%clk 0:00:08]} 60. Bd3 {[%clk 0:01:15]}
h4 {[%clk 0:00:07]} 61. b5 {[%clk 0:01:16]} h3 {[%clk 0:00:07]} 62. Rxc3 {[%clk
0:01:15]} h2 {[%clk 0:00:08]} 63. Rc6+ {[%clk 0:01:06]} Ke7 {[%clk 0:00:10]} 64.
Rh6 {[%clk 0:00:57]} f6 {[%clk 0:00:11]} 65. Ke4 {[%clk 0:00:52]} Ke6 {[%clk
0:00:10]} 66. Bc4+ {[%clk 0:00:41]} Kd6 {[%clk 0:00:11]} 67. Kd4 {[%clk
0:00:42]} Rf2 {[%clk 0:00:10]} 68. Bd3 {[%clk 0:00:38]} Ke6 {[%clk 0:00:06]} 69.
Be4 {[%clk 0:00:36]} Rb2 {[%clk 0:00:06]} 70. Kc5 {[%clk 0:00:27]} Ke5 {[%clk
0:00:07]} 71. Bc6 {[%clk 0:00:23]} Rc2+ {[%clk 0:00:09]} 72. Kb6 {[%clk
0:00:24]} f5 {[%clk 0:00:09]} 73. Kc7 {[%clk 0:00:25]} f4 {[%clk 0:00:09]} 74.
b6 {[%clk 0:00:26]} f3 {[%clk 0:00:10]} 75. b7 {[%clk 0:00:26]} f2 {[%clk
0:00:08]} 76. b8=Q {[%clk 0:00:25]} f1=Q {[%clk 0:00:08]} 77. Qh8+ {[%clk
0:00:24]} 1-0

[Variant "Standard"]
[Site "Europe Echecs"]

[Event "Champions Chess Tour Finals 2024"]
[Date "2024.12.18"]
[White "Aronian, Levon"]
[Black "Lazavik, Denis"]
[WhiteElo "2818"]
[BlackElo "2553"]
[Round "4.2"]
[Result "1-0"]
[TimeControl "600+2"]

1. e4 {[%clk 0:10:02]} e5 {[%clk 0:10:03]} 2. Bc4 {[%clk 0:10:02]} Nf6 {[%clk
0:10:02]} 3. d3 {[%clk 0:10:03]} Nc6 {[%clk 0:10:02]} 4. Nc3 {[%clk 0:10:03]}
Bb4 {[%clk 0:10:02]} 5. Nf3 {[%clk 0:09:56]} d5 {[%clk 0:09:48]} 6. exd5 {[%clk
0:09:56]} Nxd5 {[%clk 0:09:49]} 7. O-O {[%clk 0:09:56]} Bxc3 {[%clk 0:08:57]} 8.
bxc3 {[%clk 0:09:57]} O-O {[%clk 0:08:56]} 9. Bd2 {[%clk 0:09:57]} Bg4 {[%clk
0:08:53]} 10. Rb1 {[%clk 0:09:48]} Nb6 {[%clk 0:08:44]} 11. Bb3 {[%clk 0:09:40]}
Qd6 {[%clk 0:08:04]} 12. Qe2 {[%clk 0:09:22]} Kh8 {[%clk 0:08:03]} 13. h3 {[%clk
0:09:08]} Bh5 {[%clk 0:08:03]} 14. g4 {[%clk 0:09:05]} Bg6 {[%clk 0:08:03]} 15.
Nh4 {[%clk 0:09:06]} Rae8 {[%clk 0:08:02]} 16. Rbe1 {[%clk 0:08:11]} f5 {[%clk
0:06:03]} 17. Kh1 {[%clk 0:07:57]} f4 {[%clk 0:04:22]} 18. Nxg6+ {[%clk
0:07:07]} Qxg6 {[%clk 0:04:23]} 19. Qe4 {[%clk 0:06:57]} Qh6 {[%clk 0:04:04]}
20. Kh2 {[%clk 0:06:14]} Nc8 {[%clk 0:04:05]} 21. f3 {[%clk 0:05:40]} Nd6 {[%clk
0:04:03]} 22. Qe2 {[%clk 0:05:41]} Nd8 {[%clk 0:03:15]} 23. Qg2 {[%clk 0:05:15]}
N8f7 {[%clk 0:03:02]} 24. Re2 {[%clk 0:05:05]} Qf6 {[%clk 0:02:10]} 25. Be1
{[%clk 0:05:00]} Ng5 {[%clk 0:01:36]} 26. h4 {[%clk 0:04:49]} Ne6 {[%clk
0:01:38]} 27. Bf2 {[%clk 0:04:40]} e4 {[%clk 0:01:36]} 28. dxe4 {[%clk 0:04:24]}
Qxc3 {[%clk 0:01:37]} 29. Rd1 {[%clk 0:04:11]} Nf7 {[%clk 0:00:23]} 30. Rd3
{[%clk 0:03:41]} Qf6 {[%clk 0:00:19]} 31. Rd5 {[%clk 0:03:28]} c6 {[%clk
0:00:10]} 32. Rf5 {[%clk 0:03:29]} Qe7 {[%clk 0:00:11]} 33. g5 {[%clk 0:03:14]}
Nd6 {[%clk 0:00:10]} 34. Qg4 {[%clk 0:03:09]} Nc7 {[%clk 0:00:06]} 35. Rxf4
{[%clk 0:02:58]} Rxf4 {[%clk 0:00:05]} 36. Qxf4 {[%clk 0:03:00]} Rf8 {[%clk
0:00:06]} 37. Qg4 {[%clk 0:02:58]} Nf7 {[%clk 0:00:05]} 38. f4 {[%clk 0:02:49]}
Nb5 {[%clk 0:00:05]} 39. e5 {[%clk 0:02:04]} Nc3 {[%clk 0:00:06]} 40. Re3 {[%clk
0:02:03]} Nd5 {[%clk 0:00:07]} 41. Rf3 {[%clk 0:02:04]} Nd8 {[%clk 0:00:05]} 42.
Bg3 {[%clk 0:01:56]} Nf7 {[%clk 0:00:05]} 43. e6 {[%clk 0:01:47]} Nd6 {[%clk
0:00:05]} 44. f5 {[%clk 0:01:48]} Rxf5 {[%clk 0:00:04]} 45. Bxd5 {[%clk
0:00:22]} Rxd5 {[%clk 0:00:04]} 46. c4 {[%clk 0:00:23]} Rd2+ {[%clk 0:00:05]}
47. Kh3 {[%clk 0:00:25]} Kg8 {[%clk 0:00:05]} 48. c5 {[%clk 0:00:21]} Ne8 {[%clk
0:00:05]} 49. Qf5 {[%clk 0:00:16]} Rxa2 {[%clk 0:00:04]} 50. Bd6 {[%clk
0:00:12]} Nxd6 {[%clk 0:00:04]} 51. cxd6 {[%clk 0:00:13]} Qe8 {[%clk 0:00:03]}
52. d7 {[%clk 0:00:12]} 1-0

[Variant "Standard"]
[Site "Europe Echecs"]

[Event "Champions Chess Tour Finals 2024"]
[Date "2024.12.18"]
[White "So, Wesley"]
[Black "Keymer, Vincent"]
[WhiteElo "2826"]
[BlackElo "2649"]
[Round "4.3"]
[Result "1/2-1/2"]
[TimeControl "600+2"]

1. c4 {[%clk 0:09:58]} e6 {[%clk 0:06:57]} 2. g3 {[%clk 0:09:54]} d5 {[%clk
0:06:56]} 3. Bg2 {[%clk 0:09:53]} d4 {[%clk 0:06:50]} 4. Nf3 {[%clk 0:09:50]}
Nf6 {[%clk 0:06:45]} 5. d3 {[%clk 0:09:47]} Nc6 {[%clk 0:06:40]} 6. O-O {[%clk
0:09:41]} Bc5 {[%clk 0:06:39]} 7. Nbd2 {[%clk 0:09:08]} O-O {[%clk 0:06:37]} 8.
Nb3 {[%clk 0:09:06]} Be7 {[%clk 0:06:36]} 9. e3 {[%clk 0:09:05]} dxe3 {[%clk
0:06:34]} 10. Bxe3 {[%clk 0:09:04]} Ng4 {[%clk 0:06:33]} 11. Bc5 {[%clk
0:08:54]} Bxc5 {[%clk 0:06:31]} 12. Nxc5 {[%clk 0:08:53]} b6 {[%clk 0:06:31]}
13. Nb3 {[%clk 0:08:38]} Bb7 {[%clk 0:06:01]} 14. d4 {[%clk 0:08:29]} Rb8 {[%clk
0:05:35]} 15. Qe2 {[%clk 0:08:11]} Nf6 {[%clk 0:05:34]} 16. Rad1 {[%clk
0:08:06]} Ne7 {[%clk 0:05:25]} 17. Rfe1 {[%clk 0:08:03]} Ng6 {[%clk 0:05:14]}
18. h4 {[%clk 0:07:58]} Qc8 {[%clk 0:05:04]} 19. Bh3 {[%clk 0:07:29]} Qe8 {[%clk
0:04:39]} 20. Ng5 {[%clk 0:06:51]} h6 {[%clk 0:03:35]} 21. h5 {[%clk 0:06:33]}
Ne7 {[%clk 0:03:18]} 22. Nf3 {[%clk 0:06:00]} Nc6 {[%clk 0:02:48]} 23. Nh4
{[%clk 0:05:14]} a5 {[%clk 0:02:46]} 24. Rd2 {[%clk 0:04:14]} a4 {[%clk
0:02:35]} 25. Na1 {[%clk 0:04:13]} Na5 {[%clk 0:02:19]} 26. b4 {[%clk 0:03:48]}
axb3 {[%clk 0:02:17]} 27. axb3 {[%clk 0:03:46]} b5 {[%clk 0:02:11]} 28. d5
{[%clk 0:03:28]} exd5 {[%clk 0:02:00]} 29. Qd1 {[%clk 0:03:27]} Qd8 {[%clk
0:01:52]} 30. cxb5 {[%clk 0:03:12]} Bc8 {[%clk 0:01:52]} 31. Bxc8 {[%clk
0:02:49]} Qxc8 {[%clk 0:01:47]} 32. Qf3 {[%clk 0:02:48]} Re8 {[%clk 0:01:33]}
33. Rxe8+ {[%clk 0:02:32]} Qxe8 {[%clk 0:01:32]} 34. Re2 {[%clk 0:02:30]} Qxb5
{[%clk 0:01:31]} 35. Nf5 {[%clk 0:02:29]} Nxb3 {[%clk 0:01:28]} 36. Nc2 {[%clk
0:01:58]} d4 {[%clk 0:01:27]} 37. Re7 {[%clk 0:01:30]} Nd2 {[%clk 0:01:25]} 38.
Nxh6+ {[%clk 0:01:24]} Kh7 {[%clk 0:01:12]} 39. Qd1 {[%clk 0:01:24]} Qd3 {[%clk
0:01:08]} 40. Nxf7 {[%clk 0:01:13]} Rb1 {[%clk 0:01:05]} 41. Ng5+ {[%clk
0:01:07]} Kh6 {[%clk 0:01:05]} 42. Nf7+ {[%clk 0:01:06]} Kh7 {[%clk 0:01:04]}
43. Ng5+ {[%clk 0:01:06]} Kh6 {[%clk 0:01:04]} 44. Nf7+ {[%clk 0:01:03]} 1/2-1/2

[Variant "Standard"]
[Site "Europe Echecs"]

[Event "Champions Chess Tour Finals 2024"]
[Date "2024.12.18"]
[White "Vachier-Lagrave, Maxime"]
[Black "Carlsen, Magnus"]
[WhiteElo "2763"]
[BlackElo "2838"]
[Round "4.3"]
[Result "1/2-1/2"]
[TimeControl "600+2"]

1. e4 {[%clk 0:09:59]} e5 {[%clk 0:06:55]} 2. Nf3 {[%clk 0:09:58]} Nc6 {[%clk
0:06:54]} 3. Bb5 {[%clk 0:09:57]} a6 {[%clk 0:06:53]} 4. Ba4 {[%clk 0:09:56]}
Nf6 {[%clk 0:06:52]} 5. O-O {[%clk 0:09:54]} Be7 {[%clk 0:06:49]} 6. d3 {[%clk
0:09:53]} b5 {[%clk 0:06:48]} 7. Bb3 {[%clk 0:09:52]} O-O {[%clk 0:06:46]} 8.
Nc3 {[%clk 0:09:51]} d6 {[%clk 0:06:45]} 9. a3 {[%clk 0:09:50]} Rb8 {[%clk
0:06:45]} 10. h3 {[%clk 0:09:47]} h6 {[%clk 0:06:43]} 11. Ne2 {[%clk 0:09:36]}
Re8 {[%clk 0:06:38]} 12. Ng3 {[%clk 0:09:34]} Bf8 {[%clk 0:06:37]} 13. c3 {[%clk
0:09:30]} Be6 {[%clk 0:06:24]} 14. Bc2 {[%clk 0:09:28]} d5 {[%clk 0:06:23]} 15.
b4 {[%clk 0:09:26]} dxe4 {[%clk 0:06:14]} 16. dxe4 {[%clk 0:09:25]} Qxd1 {[%clk
0:06:13]} 17. Rxd1 {[%clk 0:09:24]} Red8 {[%clk 0:06:11]} 18. Rxd8 {[%clk
0:09:06]} Rxd8 {[%clk 0:06:08]} 19. a4 {[%clk 0:09:05]} Ne8 {[%clk 0:05:34]} 20.
axb5 {[%clk 0:08:52]} axb5 {[%clk 0:05:33]} 21. Ra6 {[%clk 0:08:23]} Bd7 {[%clk
0:05:31]} 22. Nf1 {[%clk 0:08:22]} Nd6 {[%clk 0:04:40]} 23. Ne3 {[%clk 0:08:18]}
f6 {[%clk 0:04:39]} 24. Nd2 {[%clk 0:07:27]} Ne7 {[%clk 0:04:33]} 25. Nb3 {[%clk
0:07:24]} Bc6 {[%clk 0:04:19]} 26. Nc5 {[%clk 0:07:16]} Ra8 {[%clk 0:04:17]} 27.
Bb3+ {[%clk 0:06:50]} Kh7 {[%clk 0:04:04]} 28. Rxa8 {[%clk 0:06:49]} Bxa8 {[%clk
0:04:03]} 29. Ne6 {[%clk 0:06:39]} Ng6 {[%clk 0:04:03]} 30. f3 {[%clk 0:06:31]}
c6 {[%clk 0:03:59]} 31. Nf5 {[%clk 0:06:30]} Nc4 {[%clk 0:03:11]} 32. Nxf8+
{[%clk 0:06:11]} Nxf8 {[%clk 0:03:10]} 33. Bxc4 {[%clk 0:06:10]} bxc4 {[%clk
0:03:09]} 34. Nd6 {[%clk 0:06:09]} Ne6 {[%clk 0:03:05]} 35. Be3 {[%clk 0:06:05]}
g5 {[%clk 0:03:03]} 36. Nxc4 {[%clk 0:05:56]} Bb7 {[%clk 0:02:58]} 37. Na5
{[%clk 0:05:55]} Ba8 {[%clk 0:02:57]} 38. Kf2 {[%clk 0:05:02]} Kg6 {[%clk
0:02:56]} 39. Ke2 {[%clk 0:04:53]} h5 {[%clk 0:02:55]} 40. g4 {[%clk 0:04:46]}
h4 {[%clk 0:02:51]} 41. Kd3 {[%clk 0:04:43]} Kf7 {[%clk 0:02:49]} 42. Kc4 {[%clk
0:04:36]} Ke7 {[%clk 0:02:48]} 43. b5 {[%clk 0:04:33]} cxb5+ {[%clk 0:02:41]}
44. Kxb5 {[%clk 0:04:32]} Kd7 {[%clk 0:02:40]} 45. c4 {[%clk 0:04:24]} Nd8
{[%clk 0:02:39]} 46. Kb6 {[%clk 0:03:49]} Bc6 {[%clk 0:02:34]} 47. Nxc6 {[%clk
0:03:39]} Nxc6 {[%clk 0:02:33]} 48. c5 {[%clk 0:03:38]} Nd8 {[%clk 0:02:14]} 49.
Bd2 {[%clk 0:03:35]} Nc6 {[%clk 0:02:13]} 50. Bc3 {[%clk 0:03:15]} Nd8 {[%clk
0:02:11]} 51. Kb5 {[%clk 0:02:55]} Nc6 {[%clk 0:02:06]} 52. Ka6 {[%clk 0:02:48]}
Kc7 {[%clk 0:01:53]} 53. Kb5 {[%clk 0:02:39]} Kd7 {[%clk 0:01:34]} 54. Kb6
{[%clk 0:02:38]} Nd8 {[%clk 0:01:33]} 55. Be1 {[%clk 0:02:30]} Nc6 {[%clk
0:01:30]} 56. Bc3 {[%clk 0:02:05]} Nd8 {[%clk 0:01:25]} 57. f4 {[%clk 0:03:04]}
exf4 {[%clk 0:01:24]} 58. Bxf6 {[%clk 0:03:02]} f3 {[%clk 0:01:23]} 59. Bd4
{[%clk 0:03:01]} Nc6 {[%clk 0:01:22]} 60. Be3 {[%clk 0:02:53]} Ne5 {[%clk
0:01:20]} 61. Kb7 {[%clk 0:02:40]} Nc6 {[%clk 0:01:21]} 1/2-1/2

[Variant "Standard"]
[Site "Europe Echecs"]